[Event "New York Summer GM-B 2022"]
[Site "New York"]
[Date "2022.07.08"]
[Round "2.2"]
[White "Tiglon, Bryce"]
[Black "Jacobson, Aaron"]
[Result "1-0"]
[ECO "C11"]
[WhiteElo "2391"]
[BlackElo "2305"]
[Annotator "RC"]
[PlyCount "101"]
[EventDate "2022.07.08"]
[EventType "tourn"]
[EventCountry "USA"]
[SourceTitle "playchess.com"]
[Source "ChessBase"]
[SourceQuality "1"]
[TimeControl "5400+30"]

1. e4 {[%emt 0:13:25]} e6 {[%emt 0:00:05]} 2. d4 {[%emt 0:00:05]} d5 {[%emt 0:00:03]} 3. Nc3 {[%emt 0:00:43]} Nf6 {[%emt 0:00:05]} 4. e5 {[%emt 0:00:04]} Nfd7 {[%emt 0:00:04]} 5. f4 {[%emt 0:00:04]} c5 {[%emt 0:00:04]} 6. Nf3 {[%emt 0:00:04]} Nc6 {[%emt 0:00:05]} 7. Be3 {[%emt 0:00:02]} Qb6 {[%emt 0:00:07]} 8. Na4 {[%emt 0:01:58]} Qa5+ {[%emt 0:00:07]} 9. c3 {[%emt 0:00:49]} b6 {[%emt 0:00:11]} 10. Bd2 {[%emt 0:06:14]} c4 {[%emt 0:01:08]} 11. b4 {[%emt 0:01:13]} Nxb4 {[%emt 0:00:06]} 12. cxb4 {[%emt 0:02:47]} Bxb4 {[%emt 0:00:06]} 13. Qc2 {[%emt 0:07:35]} Bxd2+ {[%emt 0:00:09]} 14. Nxd2 {[%emt 0:00:07]} b5 {[%emt 0:00:04]} 15. Nc3 {[%emt 0:00:12]} b4 {[%emt 0:00:05]} 16. Nd1 {[%emt 0:01:52]} O-O {[%emt 0:06:18]} 17. Be2 {[%emt 0:00:26]} Qb6 {[%emt 0:00:13]} 18. Nf3 {[%emt 0:00:50]} f6 {[%emt 1:30:30]} 19. exf6 {[%emt 0:09:39]} Nxf6 {[%emt 0:00:00]} 20. O-O {[%emt 0:09:52]} Bd7 {[%emt 0:00:00]} 21. Qd2 {[%emt 0:20:12]} Rfc8 {[%emt 0:00:00]} 22. Ne5 {[%emt 0:02:53]} Be8 {[%emt 0:00:00]} 23. Rc1 {[%emt 0:03:49]} a5 {[%emt 0:00:00]} 24. f5 {[%emt 0:03:19]} exf5 {[%emt 0:00:00]} 25. Rxf5 {[%emt 0:00:23]} Ba4 {[%emt 0:00:00]} 26. Ne3 {[%emt 0:01:41]} c3 {[%emt 0:00:00]} 27. Qd3 {[%emt 0:00:02]} Rd8 {[%emt 0:00:00]} 28. N5g4 {[%emt 0:01:30]} Nxg4 {[%emt 0:00:00]} 29. Bxg4 {[%emt 0:00:14]} Bb5 {[%emt 0:00:00]} 30. Qd1 {[%emt 0:00:21]} Qh6 {[%emt 0:00:00]} 31. Re5 {[%emt 0:03:16]} Re8 {[%emt 0:00:13]} 32. Nxd5 {[%emt 0:01:23]} Bc4 {[%emt 0:00:49]} 33. Bf3 {[%emt 0:04:37]} Kh8 {[%emt 0:00:09]} 34. Qe1 {[%emt 0:01:14]} Rxe5 {[%emt 0:02:53]} 35. dxe5 {[%emt 0:00:01]} Re8 {[%emt 0:00:37]} 36. Ra1 {[%emt 0:01:30]} Qg5 {[%emt 0:02:38]} 37. Qe4 {[%emt 0:01:24]} Bxd5 {[%emt 0:01:20]} 38. Qxd5 {[%emt 0:00:06]} Qe3+ {[%emt 0:00:04]} 39. Kf1 {[%emt 0:00:28]} Rxe5 {[%emt 0:01:07]} 40. Qd1 {[%emt 0:01:03]} a4 {[%emt 0:00:38]} 41. Qc2 {[%emt 0:00:31]} g6 {[%emt 0:00:27]} 42. Rd1 {[%emt 0:00:12]} Rf5 {[%emt 0:00:33]} 43. Rd3 {[%emt 0:00:11]} Qe8 {[%emt 0:00:22]} 44. a3 {[%emt 0:00:19]} Qb5 {[%emt 0:00:38]} 45. axb4 {[%emt 0:00:16]} a3 {[%emt 0:00:31]} 46. Qxc3+ {[%emt 0:00:12]} Kg8 {[%emt 0:00:03]} 47. Qxa3 {[%emt 0:00:18]} Qe5 {[%emt 0:00:06]} 48. Qa8+ {[%emt 0:00:40]} Kg7 {[%emt 0:00:04]} 49. Qa7+ {[%emt 0:00:46]} Kg8 {[%emt 0:00:28]} 50. Rd8+ {[%emt 0:00:06]} Rf8 {[%emt 0:00:03]} 51. Rxf8+ {[%emt 0:00:04]} 1-0

[Event "New York Summer GM-B 2022"]
[Site "New York"]
[Date "2022.07.08"]
[Round "2.3"]
[White "Yudasin, Leonid"]
[Black "Griffith, Kyron"]
[Result "1/2-1/2"]
[ECO "A13"]
[WhiteElo "2396"]
[BlackElo "2357"]
[Annotator "RC"]
[PlyCount "36"]
[EventDate "2022.07.08"]
[EventType "tourn"]
[EventCountry "USA"]
[SourceTitle "playchess.com"]
[Source "ChessBase"]
[SourceQuality "1"]
[TimeControl "5400+30"]

1. Nf3 {[%emt 0:00:03]} Nf6 {[%emt 0:00:22]} 2. c4 {[%emt 0:01:06]} e6 {[%emt 0:00:04]} 3. g3 {[%emt 0:01:24]} d5 {[%emt 0:00:05]} 4. Bg2 {[%emt 0:00:16]} dxc4 {[%emt 0:00:10]} 5. Qa4+ {[%emt 0:00:36]} Bd7 {[%emt 0:00:04]} 6. Qxc4 {[%emt 0:00:18]} c5 {[%emt 0:00:04]} 7. Ne5 {[%emt 0:07:11]} Qc8 {[%emt 0:00:08]} 8. Nc3 {[%emt 0:03:33]} Nc6 {[%emt 0:01:26]} 9. Nxd7 {[%emt 0:00:44]} Qxd7 {[%emt 0:00:07]} 10. O-O {[%emt 0:01:30]} Rc8 {[%emt 0:00:49]} 11. Qa4 {[%emt 0:01:22]} a6 {[%emt 0:01:33]} 12. d3 {[%emt 0:00:51]} Be7 {[%emt 0:14:10]} 13. Be3 {[%emt 0:03:10]} O-O {[%emt 0:06:07]} 14. Rac1 {[%emt 0:06:40]} Rfd8 {[%emt 0:01:54]} 15. Rfe1 {[%emt 0:03:06]} Rc7 {[%emt 0:18:57]} 16. a3 {[%emt 0:07:45]} Qc8 {[%emt 0:03:39]} 17. Ne4 {[%emt 0:02:07]} Nxe4 {[%emt 0:03:24]} 18. Bxe4 {[%emt 0:00:56]} Nd4 {[%emt 0:46:27]} 1/2-1/2

[Event "New York Summer GM-B 2022"]
[Site "New York"]
[Date "2022.07.08"]
[Round "2.4"]
[White "Shmeliov, Denis"]
[Black "Lenderman, Aleksandr"]
[Result "1/2-1/2"]
[ECO "D38"]
[WhiteElo "2436"]
[BlackElo "2572"]
[Annotator "TA"]
[PlyCount "72"]
[EventDate "2022.07.08"]
[EventType "tourn"]
[EventCountry "USA"]
[SourceTitle "playchess.com"]
[Source "ChessBase"]
[SourceQuality "1"]
[TimeControl "5400+30"]

{[%evp 12,72,11,21,18,21,16,6,16,15,7,23,32,27,25,25,41,23,9,1,24,15,5,4,27,16,185,34,101,34,41,57,106,12,44,13,22,29,35,11,11,6,10,11,32,16,16,16,16,10,26,10,10,16,25,10,35,8,18,0,30,0,18]} 1. d4 {[%emt 0:01:33]} Nf6 {[%emt 0:00:05]} 2. c4 {[%emt 0:00:03]} e6 {[%emt 0:00:05]} 3. Nf3 {[%emt 0:00:04]} d5 {[%emt 0:00:06]} 4. Nc3 {[%emt 0:00:04]} Bb4 {[%emt 0:00:05]} 5. cxd5 {[%emt 0:00:56]} exd5 {[%emt 0:00:05]} 6. Bg5 {[%emt 0:00:17][%cal Bc1g5,Bg5h4,Bh4g3][%mdl 32]} O-O {[%emt 0:00:26]} 7. e3 {[%emt 0:01:03]} h6 {[%emt 0:00:13] D38: Queen's Gambit Declined: Ragozin Defence (4 Nf3 Bb4).} 8. Bh4 {[%emt 0:00:14]} Bf5 {[%emt 0:00:14]} 9. Be2 {[%emt 0:01:33]} Nbd7 {[%emt 0:01:24]} 10. Qb3 {[%emt 0:01:23]} Bxc3+ {[%emt 0:01:24]} 11. Qxc3 {[%emt 0:00:08]} g5 {[%emt 0:00:21]} 12. Bg3 {[%emt 0:00:10]} Ne4 {[%emt 0:00:06]} 13. Qb3 {[%emt 0:02:16]} (13. Qxc7 Qxc7 14. Bxc7 Rac8 $11) 13... Nb6 {[%emt 0:04:34] [#]} 14. Rc1 $146 {[%emt 0:07:06]} ({Predecessor:} 14. a4 a5 15. Nd2 Nxg3 16. hxg3 Kg7 17. Qc3 c6 18. b4 Nc8 19. O-O Nd6 20. Rfc1 {½-½ (30) Predojevic,B (2609)-Brkic,A (2583) Austria 2020}) 14... c6 {[%emt 0:00:46]} 15. Nd2 {[%emt 0:05:34][%cal Bf3d2,Bd2f1,Bf1g3,Bg3h5][%mdl 32]} Nxg3 {[%emt 0:03:53]} 16. hxg3 {[%emt 0:00:09][%cal Bh2g3,Bg3g4][%mdl 32]} Kg7 {[%emt 0:00:10]} 17. g4 {[%emt 0:03:09]} Bd7 {[%emt 0:05:02]} (17... Bg6 {feels hotter.} 18. Nf3 Qe7 19. Ne5 Rab8) 18. Nf1 {[%emt 0:04:45]} Qc8 $2 {[%emt 0:01:14]} (18... f5 $11) 19. f3 $2 {[%emt 0:02:40]} (19. Ng3 $18) 19... Qc7 {[%emt 0:07:16] [#]} ({Better is} 19... f5 $14) 20. Kf2 {[%emt 1:07:23]} ({White should try} 20. a4 $1 $16) 20... f5 $14 {[%emt 0:00:47]} 21. gxf5 {[%emt 0:00:00]} Bxf5 {[%emt 0:00:35]} 22. Bd3 {[%emt 0:00:00]} (22. a4 $16) 22... Qf7 {[%emt 0:05:39]} 23. Ng3 {[%emt 0:00:00]} Bxd3 {[%emt 0:00:51]} 24. Qxd3 {[%emt 0:00:00][%cal Oh1h6] [#] aiming for Rxh6!} Qg6 {[%emt 0:01:57]} 25. Nh5+ {[%emt 0:02:30]} Kh7 {[%emt 0:00:54]} 26. Qxg6+ {[%emt 0:00:00]} Kxg6 {[%emt 0:00:03]} 27. g4 {[%emt 0:00:00]} Nc8 {[%emt 0:02:04]} 28. Rh2 {[%emt 0:00:00]} Nd6 {[%emt 0:01:01]} 29. Rch1 {[%emt 0:00:00][%cal Oh5f4] Nf4+! is the strong threat.} Rh8 {[%emt 0:00:29]} 30. Ng3 {[%emt 0:00:00]} Rae8 {[%emt 0:03:20]} 31. Rh5 {[%emt 0:00:00]} Ref8 {[%emt 0:04:57]} 32. Ke2 {[%emt 0:00:00]} Rf7 {[%emt 0:00:34]} 33. R5h3 {[%emt 0:00:00]} Re7 {[%emt 0:02:10]} 34. Kd3 {[%emt 0:00:00]} Rf7 {[%emt 0:00:05]} 35. Ke2 {[%emt 0:00:00]} Re7 {[%emt 0:00:04]} 36. Kd3 {[%emt 0:00:00]} Rf7 {[%emt 0:30:20] Weighted Error Value: White=0.24 (precise) /Black=0.18 (very precise)} 1/2-1/2

[Event "New York Summer GM-B 2022"]
[Site "New York"]
[Date "2022.07.08"]
[Round "2.5"]
[White "Zeltsan, Joseph"]
[Black "Maiti, Milind"]
[Result "1/2-1/2"]
[ECO "C43"]
[WhiteElo "2337"]
[BlackElo "2316"]
[Annotator "RC"]
[PlyCount "98"]
[EventDate "2022.07.08"]
[EventType "tourn"]
[EventCountry "USA"]
[SourceTitle "playchess.com"]
[Source "ChessBase"]
[SourceQuality "1"]
[TimeControl "5400+30"]

1. e4 {[%emt 0:01:26]} e5 {[%emt 0:00:13]} 2. Nf3 {[%emt 0:00:05]} Nf6 {[%emt 0:00:07]} 3. d4 {[%emt 0:00:14]} Nxe4 {[%emt 0:00:20]} 4. Bd3 {[%emt 0:00:08]} d5 {[%emt 0:00:23]} 5. Nxe5 {[%emt 0:00:06]} Nd7 {[%emt 0:00:23]} 6. Nc3 {[%emt 0:00:10]} Nxe5 {[%emt 0:03:12]} 7. dxe5 {[%emt 0:00:21]} Nxc3 {[%emt 0:01:41]} 8. bxc3 {[%emt 0:00:11]} Bc5 {[%emt 0:01:59]} 9. O-O {[%emt 0:03:54]} Be6 {[%emt 0:12:20]} 10. Rb1 {[%emt 0:02:39]} Bb6 {[%emt 0:28:35]} 11. Kh1 {[%emt 0:32:53]} Qd7 {[%emt 0:10:48]} 12. f4 {[%emt 0:02:38]} Bf5 {[%emt 0:12:30]} 13. Bxf5 {[%emt 0:03:38]} Qxf5 {[%emt 0:00:02]} 14. Qxd5 {[%emt 0:00:18]} O-O {[%emt 0:03:14]} 15. Qd3 {[%emt 0:01:29]} Qe6 {[%emt 0:02:20]} 16. Bb2 {[%emt 0:23:24]} Rad8 {[%emt 0:09:08]} 17. Qe4 {[%emt 0:10:57]} Rd2 {[%emt 0:05:40]} 18. f5 {[%emt 0:06:05]} Qc6 {[%emt 0:05:11]} 19. Qg4 {[%emt 0:01:14]} Rxc2 {[%emt 0:00:47]} 20. e6 {[%emt 0:02:27]} h5 {[%emt 0:00:29]} 21. Qg3 {[%emt 0:00:49]} fxe6 {[%emt 0:00:52]} 22. c4 {[%emt 0:01:12]} Rf7 {[%emt 0:00:41]} 23. Rbd1 {[%emt 0:03:06]} Qe8 {[%emt 0:00:30]} 24. Be5 {[%emt 0:02:05]} exf5 {[%emt 0:00:24]} 25. Rf2 {[%emt 0:01:31]} f4 26. Rxf4 {[%emt 0:00:00]} Rf2 {[%emt 0:01:01]} 27. Rxf2 {[%emt 0:00:14]} Bxf2 {[%emt 0:00:02]} 28. Qg5 {[%emt 0:00:40]} Bh4 {[%emt 0:00:29]} 29. Qxh4 {[%emt 0:00:19]} Qxe5 {[%emt 0:00:01]} 30. h3 {[%emt 0:00:35]} c6 {[%emt 0:00:57]} 31. Re1 {[%emt 0:00:19]} Qf5 {[%emt 0:00:33]} 32. Qd4 {[%emt 0:00:23]} a6 {[%emt 0:00:25]} 33. Re4 {[%emt 0:00:25]} Kh7 {[%emt 0:00:36]} 34. Kh2 {[%emt 0:00:06]} Qg6 {[%emt 0:00:48]} 35. Re5 {[%emt 0:00:52]} Rf5 {[%emt 0:00:38]} 36. Rxf5 {[%emt 0:00:29]} Qxf5 {[%emt 0:00:01]} 37. c5 {[%emt 0:00:21]} Qf7 {[%emt 0:00:15]} 38. Qe5 {[%emt 0:00:29]} Qd5 {[%emt 0:00:35]} 39. Qe7 {[%emt 0:00:44]} Qxa2 {[%emt 0:01:02]} 40. Qe4+ {[%emt 0:00:20]} Kh6 {[%emt 0:00:20]} 41. Qf4+ {[%emt 0:00:26]} Kg6 {[%emt 0:00:21]} 42. Qe4+ {[%emt 0:00:59]} Kf6 {[%emt 0:00:34]} 43. Qf4+ {[%emt 0:00:06]} Kg6 {[%emt 0:00:25]} 44. Qe4+ {[%emt 0:00:02]} Kf6 {[%emt 0:00:01]} 45. Qf4+ {[%emt 0:00:01]} Ke6 {[%emt 0:02:07]} 46. Qd6+ {[%emt 0:00:28]} Kf5 {[%emt 0:00:00]} 47. Qf8+ {[%emt 0:01:25]} Kg6 {[%emt 0:00:17]} 48. Qd6+ {[%emt 0:00:17]} Kf7 {[%emt 0:00:17]} 49. Qc7+ {[%emt 0:00:50]} Kf6 {[%emt 0:00:29]} 1/2-1/2

[Event "New York Summer GM-B 2022"]
[Site "New York"]
[Date "2022.07.09"]
[Round "3.1"]
[White "Maiti, Milind"]
[Black "Wang, Qibiao"]
[Result "1/2-1/2"]
[ECO "E36"]
[WhiteElo "2316"]
[BlackElo "2365"]
[Annotator "RC"]
[PlyCount "115"]
[EventDate "2022.07.08"]
[EventType "tourn"]
[EventCountry "USA"]
[SourceTitle "playchess.com"]
[Source "ChessBase"]
[SourceQuality "1"]
[TimeControl "5400+30"]

1. d4 {[%emt 0:00:03]} Nf6 {[%emt 0:00:35]} 2. c4 {[%emt 0:00:06]} e6 {[%emt 0:00:04]} 3. Nc3 {[%emt 0:00:05]} Bb4 {[%emt 0:00:05]} 4. Qc2 {[%emt 0:00:06]} d5 {[%emt 0:00:12]} 5. a3 {[%emt 0:00:14]} Bxc3+ {[%emt 0:00:07]} 6. Qxc3 {[%emt 0:00:04]} dxc4 {[%emt 0:00:05]} 7. Qxc4 {[%emt 0:01:30]} b6 {[%emt 0:00:05]} 8. e3 {[%emt 0:13:02]} O-O {[%emt 0:01:40]} 9. Be2 {[%emt 0:02:33]} Ba6 {[%emt 0:07:48]} 10. Qa4 {[%emt 0:07:33]} Bxe2 {[%emt 0:03:00]} 11. Nxe2 {[%emt 0:00:03]} Qd7 {[%emt 0:00:54]} 12. Qc2 {[%emt 0:03:37]} c5 {[%emt 0:00:37]} 13. dxc5 {[%emt 0:01:45]} Rc8 {[%emt 0:00:13]} 14. Nc3 {[%emt 0:07:56]} Rxc5 {[%emt 0:00:58]} 15. O-O {[%emt 0:01:51]} Qc7 {[%emt 0:04:44]} 16. h3 {[%emt 0:08:44]} Nbd7 {[%emt 0:14:31]} 17. Rd1 {[%emt 0:07:07]} b5 {[%emt 0:02:27]} 18. e4 {[%emt 0:04:17]} Rc4 {[%emt 0:02:10]} 19. f3 {[%emt 0:04:07]} Rb8 {[%emt 0:06:59]} 20. Be3 {[%emt 0:03:12]} a5 {[%emt 0:00:36]} 21. Qe2 {[%emt 0:07:29]} h6 {[%emt 0:05:49]} 22. Rac1 {[%emt 0:02:12]} Qc6 {[%emt 0:02:39]} 23. Qe1 {[%emt 0:03:48]} Nc5 {[%emt 0:08:49]} 24. Ne2 {[%emt 0:06:28]} Nb3 {[%emt 0:01:51]} 25. Nd4 {[%emt 0:04:12]} Nxd4 {[%emt 0:01:20]} 26. Bxd4 {[%emt 0:03:25]} Nh5 {[%emt 0:05:33]} 27. Rxc4 {[%emt 0:01:05]} Qxc4 {[%emt 0:00:17]} 28. Qxa5 {[%emt 0:01:51]} Qb3 {[%emt 0:02:14]} 29. Qe1 {[%emt 0:01:31]} Rd8 {[%emt 0:00:23]} 30. Rd2 {[%emt 0:00:56]} Nf4 {[%emt 0:05:45]} 31. Bc3 {[%emt 0:02:39]} Re8 {[%emt 0:00:17]} 32. Qe3 {[%emt 0:01:28]} e5 {[%emt 0:00:25]} 33. Qc5 {[%emt 0:00:14]} Kh7 {[%emt 0:02:38]} 34. Qb4 {[%emt 0:01:19]} Qxb4 {[%emt 0:06:45]} 35. Bxb4 {[%emt 0:01:28]} Rc8 {[%emt 0:00:06]} 36. Bc3 {[%emt 0:00:00]} f6 {[%emt 0:00:03]} 37. h4 {[%emt 0:00:00]} Kg6 {[%emt 0:00:45]} 38. g3 {[%emt 0:00:13]} Ne6 {[%emt 0:00:04]} 39. Kf2 {[%emt 0:00:52]} Nc5 {[%emt 0:00:07]} 40. Ke3 {[%emt 0:00:41]} Na4 {[%emt 0:00:11]} 41. Rd3 {[%emt 0:01:14]} Kf7 {[%emt 0:00:53]} 42. Kd2 {[%emt 0:00:00]} Ke6 {[%emt 0:00:04]} 43. Kc2 {[%emt 0:00:00]} g5 {[%emt 0:01:11]} 44. hxg5 {[%emt 0:00:41]} fxg5 {[%emt 0:01:07]} 45. Kd2 {[%emt 0:00:34]} h5 {[%emt 0:00:11]} 46. Rd5 {[%emt 0:00:37]} Nxc3 {[%emt 0:01:49]} 47. bxc3 {[%emt 0:00:02]} Rf8 {[%emt 0:02:38]} 48. Ke3 {[%emt 0:00:20]} Rc8 {[%emt 0:00:04]} 49. Kd3 {[%emt 0:00:22]} Rf8 {[%emt 0:00:05]} 50. Ke3 {[%emt 0:01:07]} Rc8 {[%emt 0:00:04]} 51. Kd3 {[%emt 0:00:18]} Rf8 {[%emt 0:00:10]} 52. f4 {[%emt 0:00:35]} gxf4 {[%emt 0:03:14]} 53. gxf4 {[%emt 0:00:01]} exf4 {[%emt 0:02:50]} 54. Rxh5 {[%emt 0:00:30]} f3 {[%emt 0:00:02]} 55. Rh1 {[%emt 0:00:14]} f2 {[%emt 0:00:22]} 56. Rf1 {[%emt 0:00:13]} Ke5 {[%emt 0:00:03]} 57. Ke3 {[%emt 0:00:09]} Rc8 {[%emt 0:00:02]} 58. Rxf2 {[%emt 0:00:15]} 1/2-1/2

[Event "New York Summer GM-B 2022"]
[Site "New York"]
[Date "2022.07.09"]
[Round "3.2"]
[White "Lenderman, Aleksandr"]
[Black "Zeltsan, Joseph"]
[Result "1/2-1/2"]
[ECO "C44"]
[WhiteElo "2572"]
[BlackElo "2337"]
[Annotator "TA"]
[PlyCount "59"]
[EventDate "2022.07.08"]
[EventType "tourn"]
[EventCountry "USA"]
[SourceTitle "playchess.com"]
[Source "ChessBase"]
[SourceQuality "1"]
[TimeControl "5400+30"]

{[%evp 13,59,-12,-9,-3,2,4,22,20,25,21,23,0,0,-14,0,0,0,0,0,0,24,0,48,0,47,41,43,0,0,0,0,-24,0,0,0,-10,0,0,0,0,0,0,0,0,0,0,0,0]} 1. e4 {[%emt 0:00:12]} e5 {[%emt 0:00:55]} 2. Nf3 {[%emt 0:00:08]} Nf6 {[%emt 0:00:04]} 3. d3 {[%emt 0:00:52]} Nc6 {[%emt 0:00:29]} 4. g3 {[%emt 0:00:28]} Bc5 {[%emt 0:01:04]} 5. Bg2 {[%emt 0:00:25]} O-O {[%emt 0:00:20]} 6. O-O {[%emt 0:00:36]} d5 {[%emt 0:04:52]} 7. exd5 {[%emt 0:00:23]} Nxd5 {[%emt 0:00:09]} 8. a3 {[%emt 0:00:27] C44: Ponziani Opening and Scotch Gambit.} a5 {[%emt 0:02:38] Prevents b4.} 9. Nc3 {[%emt 0:02:09]} Nf6 {[%emt 0:10:33] [#]} 10. Re1 $146 {[%emt 0:09:17]} ({Predecessor:} 10. Be3 Bxe3 11. fxe3 Qe7 12. Nh4 g6 13. Bxc6 bxc6 14. Qf3 Nd5 15. Nxd5 cxd5 16. Qxd5 {1-0 (49) Rapport,R (2763)-Cheparinov,I (2664) Warsaw 2021}) 10... h6 {[%emt 0:00:43] Against Bg5} 11. Be3 {[%emt 0:00:11]} ({Much weaker is} 11. Nxe5 Nxe5 12. Rxe5 {[#]} Bxf2+ $1 {[%mdl 512]} 13. Kh1 Bd4 $17) 11... Bd4 {[%emt 0:16:18]} 12. h3 {[%emt 0:03:21]} a4 {[%emt 0:02:53]} 13. Bd2 {[%emt 0:02:09]} Re8 {[%emt 0:12:11]} 14. Nxd4 {[%emt 0:02:58]} exd4 {[%emt 0:02:04]} 15. Rxe8+ {[%emt 0:00:22]} Qxe8 {[%emt 0:02:00]} 16. Ne2 {[%emt 0:01:32]} Ra6 {[%emt 0:02:57]} 17. Nf4 {[%emt 0:02:54]} Rb6 {[%emt 0:00:26]} (17... Bd7 $11 {should be considered.}) 18. Rb1 {[%emt 0:00:18]} (18. b4 $14 {feels stronger.}) 18... Rb5 {[%emt 0:00:28]} (18... Qd8 $11) 19. c3 $14 {[%emt 0:04:18]} Rb3 {[%emt 0:09:06]} 20. cxd4 {[%emt 0:04:21]} Nxd4 {[%emt 0:06:13]} 21. Bc3 {[%emt 0:01:00] A strong pair of Bishops.} Qd8 {[%emt 0:00:57]} 22. Ne2 {[%emt 0:03:02]} Nxe2+ {[%emt 0:01:00]} (22... Nb5 $5 {[%cal Rc8f5]}) 23. Qxe2 {[%emt 0:00:04] The position is equal.} Be6 {[%emt 0:00:17]} 24. Re1 {[%emt 0:01:20]} c6 {[%emt 0:01:08]} 25. Qe5 {[%emt 0:05:00]} Rb5 $1 {[%emt 0:02:59]} 26. Qf4 {[%emt 0:01:12]} Nd5 {[%emt 0:03:36]} 27. Qxa4 {[%emt 0:05:22]} Nxc3 {[%emt 0:00:15]} 28. bxc3 {[%emt 0:00:06]} Qf6 {[%emt 0:00:32]} (28... Qxd3 $2 29. Qa8+ Kh7 30. Be4+ Qxe4 31. Rxe4 $18) 29. Qc2 {[%emt 0:07:42]} Rb3 {[%emt 0:00:49]} 30. d4 {[%emt 0:00:14] Weighted Error Value: White=0.09 (flawless) /Black=0.08 (flawless)} 1/2-1/2

[Event "New York Summer GM-B 2022"]
[Site "New York"]
[Date "2022.07.09"]
[Round "3.3"]
[White "Griffith, Kyron"]
[Black "Shmeliov, Denis"]
[Result "1-0"]
[ECO "B90"]
[WhiteElo "2357"]
[BlackElo "2436"]
[Annotator "RC"]
[PlyCount "114"]
[EventDate "2022.07.08"]
[EventType "tourn"]
[EventCountry "USA"]
[SourceTitle "playchess.com"]
[Source "ChessBase"]
[SourceQuality "1"]
[TimeControl "5400+30"]

1. e4 {[%emt 0:03:26]} c5 {[%emt 0:00:33]} 2. Nf3 {[%emt 0:00:06]} d6 {[%emt 0:00:28]} 3. d4 {[%emt 0:00:05]} cxd4 {[%emt 0:00:16]} 4. Nxd4 {[%emt 0:00:02]} Nf6 {[%emt 0:00:09]} 5. Nc3 {[%emt 0:00:03]} a6 {[%emt 0:00:38]} 6. h4 {[%emt 0:02:20]} e5 {[%emt 0:03:50]} 7. Nb3 {[%emt 0:00:04]} Be7 {[%emt 0:00:51]} 8. Be2 {[%emt 0:00:04]} Be6 {[%emt 0:03:23]} 9. f4 {[%emt 0:00:04]} exf4 {[%emt 0:07:12]} 10. Bxf4 {[%emt 0:00:18]} Nc6 {[%emt 0:01:06]} 11. Qd2 {[%emt 0:00:13]} d5 {[%emt 0:02:56]} 12. O-O-O {[%emt 0:01:08]} dxe4 {[%emt 0:11:19]} 13. Qe3 {[%emt 0:00:49]} Qc8 {[%emt 0:00:06]} 14. h5 {[%emt 0:04:17]} h6 {[%emt 0:02:44]} 15. Kb1 {[%emt 0:04:31]} Nb4 {[%emt 0:07:30]} 16. Be5 {[%emt 0:03:45]} O-O {[%emt 0:08:43]} 17. Qg3 {[%emt 0:19:34]} Nc6 {[%emt 0:04:16]} 18. Bf4 {[%emt 0:08:40]} Kh8 {[%emt 0:00:48]} 19. Qe3 {[%emt 0:05:41]} Rd8 {[%emt 0:06:25]} 20. Rxd8+ {[%emt 0:07:26]} Qxd8 {[%emt 0:00:06]} 21. Rd1 {[%emt 0:11:04]} Qe8 {[%emt 0:01:16]} 22. Nc5 {[%emt 0:01:24]} Bxc5 {[%emt 0:01:37]} 23. Qxc5 {[%emt 0:00:02]} Rd8 {[%emt 0:15:07]} 24. Rxd8 {[%emt 0:05:28]} Nxd8 {[%emt 0:00:08]} 25. b3 {[%emt 0:03:13]} Nc6 {[%emt 0:02:17]} 26. Kb2 {[%emt 0:05:43]} Qd7 {[%emt 0:04:28]} 27. Be3 {[%emt 0:02:04]} Kg8 {[%emt 0:02:46]} 28. a4 {[%emt 0:00:40]} Bg4 {[%emt 0:02:54]} 29. Bc4 {[%emt 0:00:16]} Be6 {[%emt 0:00:54]} 30. Be2 {[%emt 0:00:01]} Bg4 {[%emt 0:00:30]} 31. Bc4 {[%emt 0:00:17]} Qe7 {[%emt 0:03:28]} 32. Qxe7 {[%emt 0:00:11]} Nxe7 {[%emt 0:00:03]} 33. Bd4 {[%emt 0:00:03]} Nxh5 {[%emt 0:02:25]} 34. Nxe4 {[%emt 0:00:04]} Nf5 {[%emt 0:00:20]} 35. Bf2 {[%emt 0:01:14]} Nf4 {[%emt 0:01:45]} 36. Bf1 {[%emt 0:00:25]} Ne6 {[%emt 0:00:42]} 37. c4 {[%emt 0:00:29]} Kf8 {[%emt 0:00:54]} 38. c5 {[%emt 0:00:04]} Ke7 {[%emt 0:01:28]} 39. c6 {[%emt 0:00:12]} bxc6 {[%emt 0:00:03]} 40. Bxa6 {[%emt 0:00:03]} Nd6 {[%emt 0:00:28]} 41. Nd2 {[%emt 0:02:53]} Kd7 {[%emt 0:00:42]} 42. Kc3 {[%emt 0:01:04]} Nf4 {[%emt 0:01:18]} 43. g3 {[%emt 0:01:15]} Nd5+ {[%emt 0:00:11]} 44. Kd4 {[%emt 0:00:24]} Bd1 {[%emt 0:00:11]} 45. a5 {[%emt 0:00:19]} f5 {[%emt 0:01:05]} 46. Bd3 {[%emt 0:02:34]} f4 {[%emt 0:01:14]} 47. a6 {[%emt 0:00:40]} fxg3 {[%emt 0:00:50]} 48. a7 {[%emt 0:00:25]} Nc7 {[%emt 0:00:06]} 49. Bxg3 {[%emt 0:00:11]} Ncb5+ {[%emt 0:00:08]} 50. Kc5 {[%emt 0:00:12]} Nxa7 {[%emt 0:01:05]} 51. Bxd6 {[%emt 0:00:02]} g5 {[%emt 0:00:38]} 52. Bf5+ {[%emt 0:00:14]} Kd8 {[%emt 0:00:07]} 53. b4 {[%emt 0:00:17]} Be2 {[%emt 0:02:33]} 54. Nb3 {[%emt 0:01:07]} Bf3 {[%emt 0:00:00]} 55. Nd4 {[%emt 0:00:39]} Bg2 {[%emt 0:00:00]} 56. Bg4 {[%emt 0:00:38]} Be4 {[%emt 0:00:16]} 57. Bf8 {[%emt 0:00:14]} Ke8 {[%emt 0:01:44]} 1-0